bitfinex/quotes_ETHUSD_20260114
["timestamp","ask_amount","ask_price","bid_price","bid_amount"]
[1768374372235,5.94410367,3336.1,3335.3,0.02292328]
[1768374372432,5.94410367,3336.1,3335.6,0.001]
[1768374372626,0.60499986,3336.1,3335.6,0.001]
[1768374372947,0.60499986,3336.1,3335.6,5.80993199]
[1768374373242,0.60499986,3336.1,3335.6,0.001]
[1768374375350,1.15999986,3336.1,3335.6,0.001]
[1768374375751,1.112,3336.6,3335.6,0.001]
[1768374375752,1.524,3336.6,3335.8,5.80893199]
[1768374376054,1.524,3336.6,3335.9,0.5809932]
[1768374376235,1.112,3336.6,3335.9,6.38992519]
[1768374376443,1.524,3336.6,3335.9,6.38992519]
[1768374377655,0.04999986,3336.5,3335.9,6.38992519]
[1768374379067,0.555,3336.8,3336.5,5.963765]
[1768374379836,0.55380085,3336.8,3336.5,5.963765]
[1768374380038,1e-08,3336.8,3336.5,5.963765]
[1768374380953,0.555,3337.7,3336.8,5.963765]
[1768374381154,0.555,3337.7,3336.8,8.96063963]
[1768374381465,3.55108515,3337.7,3336.8,5.963765]
[1768374381637,12.64737602,3337.7,3336.5,6.375765]
[1768374382344,12.64737602,3337.7,3336.5,9.37290314]
[1768374382544,10.20629087,3337.7,3336.5,9.37290314]
[1768374383738,1.11,3337.7,3336.6,5.963765]
[1768374384842,0.96069888,3337.7,3337.1,5.963765]
[1768374385043,1.51569888,3337.7,3337.1,6.375765]
[1768374385369,1.51569888,3337.7,3336.2,2.99737361]
[1768374385370,0.03849999,3338.0,3337.3,5.963765]
[1768374385956,0.002,3338.0,3337.3,5.963765]
[1768374386156,0.002,3338.0,3337.4,1.19568131]
[1768374386456,0.002,3338.0,3337.4,7.15944631]
[1768374387448,0.557,3338.0,3337.4,7.15944631]
[1768374389147,0.557,3338.0,3337.4,5.963765]
[1768374389373,0.557,3338.0,3337.1,5.963765]
[1768374389374,3.55281545,3338.0,3337.1,5.963765]
[1768374389578,0.557,3338.0,3337.1,5.963765]
[1768374390168,1.112,3338.0,3337.1,5.963765]
[1768374390547,1.112,3338.0,3337.1,8.96037304]
[1768374390744,1.112,3338.0,3337.2,5.963765]
[1768374390946,1.112,3338.0,3337.2,5.99373024]
[1768374391269,1.112,3338.0,3337.2,8.99022353]
[1768374391476,1.112,3338.0,3337.3,5.963765]
[1768374391643,4.10781468,3338.0,3337.3,5.963765]
[1768374391972,1.112,3338.0,3337.3,5.963765]
[1768374392643,1.667,3338.0,3337.3,5.963765]
[1768374394476,1.667,3338.0,3336.7,0.02996973]
[1768374394671,13.75882018,3338.0,3336.7,9.37272078]
[1768374394972,6.10020572,3337.9,3336.8,5.963765]
[1768374395175,5.21784315,3338.0,3337.0,2.99666217]
[1768374395675,5.21783586,3338.0,3337.0,2.99666217]
[1768374396052,5.21780779,3338.0,3337.0,9.3847794]
[1768374396376,0.412,3337.9,3337.1,6.38811723]
[1768374396751,0.412,3337.9,3337.3,1.07346]
[1768374397484,0.002,3337.7,3337.3,1.07346]
[1768374398979,6.33372897,3337.7,3337.3,0.9528853]
[1768374399276,0.412,3337.6,3337.3,0.9528853]
[1768374400063,0.967,3337.6,3337.3,0.9528853]
[1768374400388,7.29872897,3337.6,3336.8,0.001]
[1768374400558,0.967,3337.6,3336.8,0.001]
[1768374400751,0.967,3337.6,3336.8,6.38911723]
[1768374401781,5.99250936,3337.5,3336.8,0.001]
[1768374402086,5.99250936,3337.5,3336.9,6.38811723]
[1768374402284,5.99250936,3337.5,3336.8,0.001]
[1768374402483,6.54750936,3337.5,3336.8,0.001]
[1768374403885,6.33172897,3337.4,3336.8,0.001]
[1768374404384,6.54750936,3337.5,3336.8,0.001]
[1768374404783,7.10250936,3337.5,3336.8,0.001]
[1768374404982,6.33172897,3337.4,3336.8,0.001]
[1768374405182,7.10250936,3337.5,3336.8,0.001]
[1768374405395,16.43049301,3337.5,3336.8,0.001]
[1768374405597,16.43049301,3337.5,3336.1,6.38811723]
[1768374405598,6.33172897,3337.4,3336.1,6.38811723]
[1768374405881,5.99286848,3337.3,3336.1,6.38811723]
[1768374406081,8.98930272,3337.3,3336.1,6.38811723]
[1768374406491,5.99286848,3337.3,3336.1,6.38811723]
[1768374406865,0.412,3337.2,3336.1,6.38811723]
[1768374407272,0.967,3337.2,3336.1,6.38811723]
[1768374407604,7.29872897,3337.2,3335.7,6.38811723]
[1768374407767,6.33172897,3337.0,3335.6,6.38911723]
[1768374407973,8.99038029,3336.9,3335.6,6.38911723]
[1768374408174,5.99358686,3336.9,3335.6,6.38911723]
[1768374409098,12.32531583,3336.9,3335.6,6.38911723]
[1768374409291,15.32210926,3336.9,3335.6,6.38911723]
[1768374409487,6.33172897,3336.8,3336.4,0.001]
[1768374409692,0.412,3336.7,3335.6,6.38911723]
[1768374409900,5.99412574,3336.6,3335.6,0.001]
[1768374410105,5.99412574,3336.6,3335.6,6.38911723]
[1768374411772,0.555,3336.9,3335.6,6.38911723]
[1768374411979,0.555,3336.9,3336.0,6.38811723]
[1768374412209,1.11,3336.9,3336.0,6.38811723]
[1768374412872,0.555,3337.2,3336.9,0.02083692]
[1768374413073,0.412,3337.1,3336.9,0.02083692]
[1768374414204,0.555,3337.2,3336.9,0.02083692]
[1768374414411,0.412,3337.0,3336.9,0.02083692]
[1768374416004,0.412,3337.1,3336.9,0.02083692]
[1768374416992,0.967,3337.1,3336.9,0.02083692]
[1768374419614,1.522,3337.1,3336.9,0.02083692]
[1768374420712,1.11,3337.1,3336.9,0.02083692]
[1768374420918,1.522,3337.1,3336.9,0.02083692]
[1768374421919,2.077,3337.1,3336.9,0.02083692]
[1768374422617,1.11,3337.2,3336.9,6.40895415]
[1768374423596,4.10656207,3337.2,3336.9,6.40895415]
[1768374423815,1.11,3337.2,3336.9,6.40895415]
[1768374424323,4.1065533,3337.2,3336.9,0.02083692]
[1768374424495,1.665,3337.2,3336.9,0.02083692]
[1768374424922,2.077,3337.2,3336.9,0.02083692]
[1768374427017,2.632,3337.2,3336.9,0.02083692]
[1768374427721,2.632,3337.2,3336.9,6.12654335]
[1768374428507,2.632,3337.2,3336.9,6.10570643]
[1768374428715,1.11,3337.5,3336.9,6.10570643]
[1768374428927,0.412,3337.4,3337.2,6.10570643]
[1768374429126,0.002,3337.7,3337.2,6.10570643]
[1768374429127,0.412,3337.6,3337.2,6.10570643]
[1768374429428,0.555,3337.4,3337.2,6.10570643]
[1768374429639,0.412,3337.6,3337.2,6.10570643]
[1768374430097,0.412,3337.6,3336.8,2.99681606]
[1768374430297,0.412,3337.6,3336.8,1.89703485]
[1768374430729,0.412,3337.6,3336.8,10.99954921]
[1768374430929,0.412,3337.6,3336.8,10.99959113]
[1768374431328,0.412,3337.6,3336.9,6.10570643]
[1768374431813,0.967,3337.6,3336.9,6.10570643]
[1768374432113,0.967,3337.6,3337.0,6.10570643]
[1768374432848,0.555,3337.6,3337.0,6.10570643]
[1768374433125,0.002,3337.3,3337.0,6.10570643]
[1768374433329,0.555,3337.6,3337.0,6.10570643]
[1768374433528,0.557,3337.6,3337.0,6.10570643]
[1768374434306,1.112,3337.6,3337.0,6.10570643]
[1768374435942,7.04287395,3337.6,3336.7,0.412]
[1768374436156,10.03904911,3337.6,3336.8,0.98678065]
[1768374436538,4.10817516,3337.6,3336.8,0.98678065]
[1768374436748,4.66317516,3337.6,3336.8,0.98678065]
[1768374436949,1.667,3337.6,3336.8,0.98678065]
[1768374437663,1.667,3337.6,3336.9,6.10570643]
[1768374437965,1.667,3337.6,3337.0,7.15584189]
[1768374439145,2.222,3337.6,3337.0,7.15584189]
[1768374439746,8.21448564,3337.6,3337.0,6.10570643]
[1768374440061,5.21824282,3337.6,3336.7,6.14434704]
[1768374440259,8.21448564,3337.6,3336.7,6.14434704]
[1768374440969,6.00022299,3337.5,3336.5,0.412]
[1768374441336,8.21448564,3337.6,3336.5,6.55634704]
[1768374441537,1.89813314,3337.5,3336.5,1.71351179]
[1768374441763,0.555,3337.5,3336.6,6.14434704]
[1768374443137,2.99634445,3337.4,3336.6,6.14434704]
[1768374443333,0.412,3337.3,3336.6,6.14434704]
[1768374443542,0.412,3337.3,3336.3,3.40928743]
[1768374443543,0.412,3337.3,3336.3,6.14434704]
[1768374443968,0.967,3337.3,3336.3,6.14434704]
[1768374444878,0.967,3337.3,3336.1,6.14434704]
[1768374445177,5.99304806,3337.2,3336.1,6.14434704]
[1768374445772,5.99304806,3337.2,3336.6,0.001]
[1768374446339,6.54804806,3337.2,3336.6,0.001]
[1768374448760,7.10304806,3337.2,3336.6,0.001]
[1768374450050,6.00022299,3337.1,3336.6,0.001]
[1768374450249,6.00022299,3337.1,3335.9,2.998685]
[1768374450477,13.10327105,3337.2,3336.0,6.14434704]
[1768374450673,6.00022299,3337.1,3336.0,6.14434704]
[1768374451147,6.55522299,3337.1,3336.0,6.14434704]
[1768374451610,6.55522299,3337.1,3335.9,0.001]
[1768374451611,6.00022299,3336.9,3335.9,0.001]
[1768374451803,6.00022299,3336.7,3335.9,0.001]
[1768374452004,6.00022299,3336.6,3335.9,0.001]
[1768374453525,11.99452839,3336.5,3335.9,0.001]
[1768374453684,6.41222299,3336.4,3335.9,0.001]
[1768374454094,1.6354581,3336.5,3335.9,0.001]
[1768374454398,0.50550726,3337.1,3336.4,6.45877083]
[1768374454573,1.11,3337.2,3336.7,0.02083942]
[1768374454778,1e-08,3337.2,3336.7,0.02083942]
[1768374454981,1e-08,3337.2,3336.7,6.16518646]
[1768374455578,1e-08,3337.3,3336.7,3.01776161]
[1768374455781,1e-08,3337.3,3336.7,3.61924943]
[1768374455981,0.55500001,3337.3,3336.7,3.61924943]
[1768374456297,0.555,3337.5,3336.8,6.61296211]
[1768374458286,0.555,3337.5,3337.0,0.001]
[1768374458287,0.55500001,3337.5,3337.0,0.001]
[1768374458503,2.222,3337.6,3337.5,0.55500001]
[1768374458712,2.222,3337.6,3337.2,6.61296211]
[1768374458902,6.35602054,3337.6,3336.7,0.02083942]
[1768374459106,6.35602054,3337.4,3336.7,0.02083942]
[1768374459415,0.412,3337.3,3336.7,0.02083942]
[1768374459577,0.412,3337.3,3336.8,6.61296211]
[1768374459779,0.412,3337.6,3336.7,0.02083942]
[1768374460005,0.412,3337.6,3336.8,6.61296211]
[1768374460220,0.412,3337.6,3336.8,0.66338015]
[1768374460420,0.412,3337.6,3336.7,6.63380153]
[1768374460620,0.412,3337.6,3336.8,6.61296211]
[1768374460913,0.967,3337.6,3336.8,6.61296211]
[1768374462587,0.002,3337.7,3336.8,6.61296211]
[1768374463205,0.557,3337.7,3336.8,6.61296211]
[1768374463906,0.557,3337.7,3337.0,6.61296211]
[1768374464415,0.557,3337.7,3336.9,0.66338015]
[1768374464604,0.557,3337.7,3337.0,6.61296211]
[1768374465116,0.557,3337.7,3336.7,6.63380153]
[1768374465713,1.112,3337.7,3336.7,6.63380153]
[1768374466619,1e-08,3337.7,3337.2,6.61296211]
[1768374466814,8.57802054,3338.0,3337.3,0.66129621]
[1768374467018,2.222,3338.0,3336.8,6.61296211]
[1768374468201,2.777,3338.0,3336.8,6.61296211]
[1768374468402,6.35602054,3339.3,3338.0,6.61296211]
[1768374468705,6.35802054,3339.0,3337.7,0.412]
[1768374469014,6.35602054,3338.9,3337.7,0.412]
[1768374469209,6.35602054,3338.9,3337.6,0.412]
[1768374469403,0.002,3339.0,3337.6,7.02496211]
[1768374469404,0.58474939,3338.8,3337.6,7.02496211]
[1768374469599,0.99674939,3338.8,3337.6,7.02496211]
[1768374469818,0.99674939,3338.8,3337.6,6.61296211]
[1768374470015,0.99674939,3338.8,3337.7,0.70249621]
[1768374470214,7.35276993,3338.8,3337.7,0.70249621]
[1768374470398,2e-08,3338.8,3338.1,6.61296211]
[1768374470598,0.414,3339.0,3337.7,7.31545832]
[1768374470821,0.002,3338.0,3337.8,0.412]
[1768374471145,0.002,3339.0,3338.0,6.61296211]
[1768374472140,0.412,3339.1,3338.2,6.61296211]
[1768374472341,0.43209602,3339.4,3337.8,7.79770794]
[1768374473144,3.98168012,3339.4,3337.8,7.79770794]
[1768374473713,6.35602054,3339.3,3337.8,1.18474583]
[1768374474015,6.35602054,3339.3,3337.5,6.61296211]
[1768374474314,6.35602054,3339.1,3337.6,7.05492375]
[1768374474501,5.98945854,3339.2,3337.6,7.02496211]
[1768374474700,2.99472927,3339.2,3337.6,7.02496211]
[1768374474906,6.35602054,3339.1,3337.6,0.412]
[1768374475221,6.35602054,3338.9,3337.7,0.02996075]
[1768374475445,0.555,3339.1,3337.7,6.64292286]
[1768374475719,0.555,3339.1,3337.7,6.61296211]
[1768374475925,6.91102054,3339.1,3337.7,7.02496211]
[1768374476301,2.99490865,3339.0,3337.7,7.02496211]
[1768374476799,5.9898173,3339.0,3337.7,6.61296211]
[1768374477124,6.76802054,3338.9,3337.3,7.02496211]
[1768374477326,6.76802054,3338.9,3337.3,6.61296211]
[1768374477727,7.32302054,3338.9,3337.3,6.61296211]
[1768374477910,6.35602054,3338.8,3337.3,6.61296211]
[1768374478109,6.35602054,3338.8,3337.0,0.001]
[1768374478313,6.35602054,3338.6,3337.1,0.412]
[1768374478513,6.35602054,3338.6,3337.1,7.02496211]
[1768374479407,6.35602054,3338.6,3337.1,0.412]
[1768374479623,6.35602054,3338.5,3337.1,7.02496211]
[1768374480011,0.412,3338.4,3337.1,6.61296211]
[1768374480207,6.76802054,3338.4,3337.0,0.001]
[1768374480409,6.35602054,3338.2,3337.0,0.001]
[1768374482310,6.35602054,3338.0,3337.0,0.001]
[1768374482541,6.35602054,3337.8,3337.0,0.001]
[1768374482828,6.35602054,3337.8,3337.3,0.001]
[1768374484330,0.412,3337.7,3337.3,0.001]
[1768374484933,6.76802054,3337.7,3337.3,0.001]
[1768374485132,7.32302054,3337.7,3337.3,0.001]
[1768374485710,0.967,3337.7,3337.3,0.001]
[1768374487513,1.11,3337.7,3337.3,0.001]
[1768374487838,0.412,3337.6,3337.3,0.001]
[1768374488207,7.06004584,3337.6,3337.3,0.001]
[1768374488410,0.412,3337.5,3337.3,0.001]
[1768374489661,0.412,3337.5,3337.0,0.001]
[1768374489948,7.61504584,3337.5,3337.0,0.001]
[1768374491259,0.967,3337.5,3337.0,0.001]
[1768374492156,1.522,3337.5,3337.0,0.001]
[1768374493861,8.17004584,3337.5,3337.0,0.001]
[1768374494315,8.17004584,3337.5,3337.3,0.001]
[1768374494652,8.17004584,3337.5,3337.0,0.001]
[1768374494830,8.72504584,3337.5,3337.0,0.001]
[1768374495554,2.077,3337.5,3337.0,0.001]
[1768374497449,2.632,3337.5,3337.0,0.001]
[1768374498648,9.41984245,3337.5,3337.0,0.001]
[1768374499025,2.632,3337.5,3337.0,0.001]
[1768374499849,9.97484245,3337.5,3337.0,0.001]
[1768374500151,3.187,3337.5,3337.0,0.001]
[1768374500528,2.775,3337.5,3337.0,0.001]
[1768374500726,0.412,3337.4,3337.0,0.001]
[1768374502155,0.967,3337.4,3337.0,0.001]
[1768374502361,0.412,3337.3,3337.0,0.65963992]
[1768374502657,0.555,3337.4,3337.3,0.02083443]
[1768374503459,0.967,3337.4,3337.3,0.02083443]
[1768374504156,0.967,3337.4,3337.0,0.001]
[1768374504530,1.522,3337.4,3337.0,0.001]
[1768374505956,0.002,3337.2,3337.0,0.001]
[1768374506156,0.002,3337.2,3336.3,6.5853992]
[1768374506459,0.002,3337.2,3336.4,0.65853992]
[1768374506835,0.002,3337.2,3336.4,7.24393912]
[1768374507034,0.557,3337.2,3336.4,7.24393912]
[1768374509558,1.112,3337.2,3336.4,7.24393912]
[1768374509946,1.112,3337.2,3336.4,0.65853992]
[1768374510135,1.112,3337.2,3336.5,0.72439391]
[1768374512033,7.89984245,3337.2,3336.5,0.72439391]
[1768374512365,8.45484245,3337.2,3336.1,6.61537432]
[1768374512545,8.45484245,3337.2,3336.1,6.5853992]
[1768374512745,8.45484245,3337.2,3336.2,0.02997422]
[1768374512970,8.45484245,3337.2,3336.2,6.61537342]
[1768374513143,8.45484245,3337.2,3336.2,6.5853992]
[1768374513346,8.45484245,3337.2,3336.3,0.02997332]
[1768374513546,1.667,3337.2,3336.4,7.24693645]
[1768374513753,0.412,3337.1,3336.5,6.61537072]
[1768374513952,0.412,3337.1,3336.5,6.5853992]
[1768374514748,0.967,3337.1,3336.5,6.5853992]
[1768374514953,0.967,3337.1,3336.6,0.65853992]
[1768374515660,0.555,3337.1,3336.6,0.65853992]
[1768374515858,0.412,3337.0,3336.6,0.65853992]
[1768374517155,0.967,3337.0,3336.6,0.65853992]
[1768374518065,0.967,3337.0,3336.9,0.001]
[1768374519158,0.555,3337.0,3336.9,0.001]
[1768374519369,0.967,3337.0,3336.9,0.001]
[1768374519570,1.522,3337.0,3336.9,0.001]
[1768374522164,2.077,3337.0,3336.9,0.001]
[1768374524572,2.632,3337.0,3336.9,0.001]
[1768374525576,2.632,3337.0,3335.9,0.001]
[1768374525577,6.50836198,3336.9,3335.9,0.001]
[1768374525782,6.50836198,3336.9,3336.0,0.67495817]
[1768374526080,6.50836198,3336.9,3336.1,0.02997512]
[1768374526983,0.555,3336.9,3336.1,6.77855681]
[1768374527182,0.555,3336.9,3336.1,6.74858169]
[1768374528460,7.72756948,3336.1,3334.1,6.74958169]
[1768374528656,6.92036198,3336.0,3334.5,6.74958169]
[1768374528870,0.412,3335.9,3335.0,6.74958169]
[1768374529198,6.50836198,3335.8,3335.0,0.001]
[1768374529491,6.87390006,3335.9,3335.0,0.001]
[1768374529492,6.50836198,3335.6,3335.0,0.001]
[1768374529680,6.50836198,3335.4,3335.0,0.001]
[1768374530498,0.412,3335.3,3335.0,0.001]
[1768374530861,6.50836198,3335.4,3335.0,0.001]
[1768374531173,0.412,3335.3,3335.0,0.001]
[1768374531375,0.412,3335.2,3335.0,0.001]
[1768374531976,0.967,3335.2,3335.0,0.001]
[1768374534487,1.522,3335.2,3335.0,0.001]
[1768374535801,1.11,3335.2,3335.0,0.001]
[1768374536900,1.665,3335.2,3335.0,0.001]
[1768374537870,1.665,3335.2,3334.5,6.74958169]
[1768374537871,6.50836198,3334.4,3333.2,0.411]
[1768374538143,6.50836198,3334.4,3332.6,0.001]
[1768374538144,0.411,3332.9,3332.6,0.001]
[1768374538392,0.37063792,3333.2,3332.7,0.411]
[1768374539171,0.92563792,3333.2,3332.7,0.411]
[1768374539377,0.92563792,3333.2,3332.8,0.411]
[1768374539584,0.92563792,3333.2,3332.6,0.001]
[1768374539766,0.92563792,3333.2,3332.7,0.411]
[1768374539971,7.4339999,3333.2,3332.7,0.411]
[1768374540171,7.4339999,3333.2,3332.6,0.001]
[1768374540376,7.4339999,3333.2,3332.7,0.411]
[1768374540801,7.4339999,3333.2,3332.6,0.001]
[1768374541190,7.4339999,3333.2,3332.9,0.001]
[1768374541504,7.4339999,3333.2,3332.6,0.001]
[1768374541680,7.9889999,3333.2,3332.7,0.411]
[1768374542089,1.48063792,3333.2,3332.7,0.411]
[1768374544212,1.665,3333.2,3332.8,0.411]
[1768374545585,8.05709273,3333.2,3332.8,0.411]
[1768374545788,6.39209273,3333.1,3332.6,0.001]
[1768374545989,6.39209273,3333.1,3332.7,0.411]
[1768374546704,6.94709273,3333.1,3332.7,0.411]
[1768374547201,6.94709273,3333.1,3332.8,0.411]
[1768374548592,6.94709273,3333.1,3332.6,0.001]
[1768374548798,6.94709273,3333.1,3332.7,0.411]
[1768374548997,1.11,3333.1,3332.7,0.411]
[1768374551397,1.665,3333.1,3332.7,0.411]
[1768374552303,8.05709273,3333.1,3332.7,0.411]
[1768374552820,0.002,3332.9,3332.7,0.411]
[1768374553217,0.002,3332.9,3332.6,0.001]
[1768374553407,0.002,3332.9,3332.8,0.411]
[1768374553592,6.39409273,3332.9,3332.6,0.001]
[1768374553912,6.94909273,3332.9,3332.7,0.411]
[1768374554486,0.557,3332.9,3332.6,0.001]
[1768374554689,0.557,3332.9,3332.7,0.411]
[1768374555131,0.557,3332.9,3330.7,0.001]
[1768374555132,6.39209273,3332.7,3330.7,0.001]
[1768374555300,6.39209273,3332.1,3330.7,0.001]
[1768374555627,6.39209273,3332.1,3330.8,0.411]
[1768374555791,6.39209273,3331.9,3330.7,0.001]
[1768374556119,1.61104849,3332.7,3330.7,0.001]
[1768374556120,5.59309273,3332.6,3330.7,0.001]
[1768374556323,0.557,3332.9,3330.8,3.50103881]
[1768374556324,6.39209273,3332.5,3330.8,3.50103881]
[1768374556535,6.39209273,3332.8,3330.9,2.72017747]
[1768374558399,9.39259705,3332.8,3331.1,2.41518713]
[1768374558601,7.93325721,3332.8,3331.3,2.41518713]
[1768374558902,8.48825721,3332.8,3331.3,2.41518713]
[1768374559731,6.94709273,3332.8,3331.3,2.41518713]
[1768374560443,6.94709273,3332.8,3331.4,0.411]
[1768374560602,6.75223267,3332.7,3331.5,0.411]
[1768374561219,7.30723267,3332.7,3331.5,0.411]
[1768374561949,7.30723267,3332.7,3331.6,0.411]
[1768374563244,7.30723267,3332.7,3331.7,0.411]
[1768374563245,6.75223267,3332.6,3331.7,0.411]
[1768374563545,6.75223267,3332.5,3331.8,0.411]
[1768374563713,6.75223267,3332.5,3331.9,0.39204044]
[1768374563912,6.75223267,3332.5,3332.0,0.411]
[1768374564218,6.75223267,3332.3,3330.9,2.45203125]
[1768374564642,6.75223267,3332.3,3331.0,0.411]
[1768374565419,6.75223267,3332.3,3331.2,0.001]
[1768374566134,7.30723267,3332.3,3331.2,0.001]
[1768374566537,6.75223267,3332.0,3331.2,0.001]
[1768374566735,6.75223267,3331.7,3330.7,0.001]
[1768374567246,6.75223267,3331.7,3330.8,0.411]
[1768374568330,7.30723267,3331.7,3330.7,0.001]
[1768374568657,6.75223267,3330.7,3329.8,0.001]
[1768374568821,6.75223267,3330.7,3329.9,0.411]
[1768374569016,6.75223267,3330.7,3330.0,0.411]
[1768374569661,6.75223267,3330.7,3330.1,0.411]
[1768374569819,6.75223267,3330.7,3330.1,0.39773407]
[1768374570142,6.75223267,3330.7,3330.1,0.29055362]
[1768374570346,6.75223267,3330.7,3330.2,0.411]
[1768374570523,6.75223267,3330.7,3330.2,0.31012132]
[1768374570724,6.75223267,3330.7,3330.2,0.26731684]
[1768374570725,7.30723267,3330.7,3330.2,0.26731684]
[1768374571050,7.30723267,3330.7,3330.2,0.24835793]
[1768374572143,7.30723267,3330.7,3330.2,0.18508725]
[1768374572451,7.30723267,3330.7,3329.8,0.001]
[1768374572452,7.30723267,3330.7,3330.3,0.411]
[1768374572750,7.30723267,3330.7,3330.3,0.15948092]
[1768374573130,7.86223267,3330.7,3330.4,0.411]
[1768374573352,7.86223267,3330.7,3330.4,0.31960232]
[1768374573550,7.86223267,3330.7,3330.4,0.30533272]
[1768374573850,7.86223267,3330.7,3330.5,0.41]
[1768374574050,1.42019807,3330.6,3329.8,0.001]
[1768374574249,1.42019807,3330.6,3329.9,0.41]
[1768374575436,1.97519807,3330.6,3329.9,0.41]
[1768374576944,1.97519807,3330.6,3330.0,0.411]
[1768374577819,1.97519807,3330.6,3330.2,0.001]
[1768374578025,2.53019807,3330.6,3330.2,0.001]
[1768374578326,2.53019807,3330.6,3330.3,0.411]
[1768374580457,3.08519807,3330.6,3330.3,0.411]
[1768374582267,6.75473777,3330.5,3330.3,0.411]
[1768374582769,7.30973777,3330.5,3330.3,0.411]
[1768374583262,0.555,3330.5,3330.3,0.411]
[1768374584771,3.03859683,3330.6,3330.3,0.411]
[1768374585465,2.84214565,3330.6,3330.3,0.411]
[1768374585669,1.94109523,3330.6,3330.3,0.411]
[1768374585976,1.93794217,3330.6,3330.3,0.411]
[1768374586266,1.48794217,3330.6,3330.3,0.411]
[1768374586466,0.4647697,3330.6,3330.3,0.411]
[1768374586767,0.20825409,3330.7,3330.3,0.411]
[1768374586999,6.66154068,3330.8,3330.3,0.411]
[1768374588195,7.21654068,3330.8,3330.3,0.411]
[1768374589764,0.555,3330.8,3330.3,3.19785737]
[1768374589972,0.555,3330.8,3330.4,0.31978574]
[1768374590166,0.002,3330.5,3330.4,0.31978574]
[1768374590393,0.405,3330.8,3330.4,0.73078574]
[1768374590737,6.75473777,3331.3,3330.4,0.73078574]
[1768374590738,6.60473777,3331.3,3330.4,0.73078574]
[1768374590865,6.60473777,3331.3,3330.8,0.05700055]
[1768374593095,7.15973777,3331.3,3330.8,0.05700055]
[1768374595016,7.15973777,3331.3,3330.9,0.411]
[1768374595619,7.71473777,3331.3,3330.9,0.411]
[1768374597990,6.75473777,3331.2,3330.9,0.411]
[1768374598285,6.29073777,3331.2,3330.9,0.411]
[1768374598481,1.665,3331.3,3330.9,0.411]
[1768374598689,0.273,3331.3,3330.9,0.411]
[1768374598890,0.273,3331.3,3330.9,5.69534693]
[1768374599088,0.273,3331.3,3330.9,6.27058168]
[1768374599617,7.02773777,3331.3,3330.9,0.98623475]
[1768374599791,0.273,3331.3,3330.9,0.411]
[1768374599989,7.02773777,3331.3,3330.9,0.411]
[1768374600505,7.58273777,3331.3,3330.9,0.411]
[1768374601492,7.58273777,3331.3,3331.0,0.411]
[1768374602233,7.58273777,3331.3,3330.8,0.05700055]
[1768374602441,7.58273777,3331.3,3331.1,0.412]
[1768374602915,8.13773777,3331.3,3331.1,0.412]
[1768374604143,1.383,3331.3,3331.1,0.412]
[1768374605539,1.938,3331.3,3331.1,0.412]
[1768374605728,8.93246824,3331.3,3331.1,0.412]
[1768374605935,6.99446824,3331.2,3331.1,0.412]
[1768374606641,1.938,3331.3,3331.1,0.412]
[1768374607156,6.99446824,3331.6,3331.2,0.411]
[1768374607474,6.99446824,3331.5,3331.2,0.411]
[1768374608017,7.54946824,3331.5,3331.2,0.411]
[1768374608542,7.54946824,3331.5,3331.3,0.411]
[1768374608738,7.54946824,3331.5,3331.4,0.411]
[1768374608947,0.555,3331.5,3331.1,0.001]
[1768374609128,7.54946824,3331.5,3331.1,0.001]
[1768374609744,7.54946824,3331.5,3331.2,0.411]
[1768374609938,0.555,3331.5,3331.2,0.411]
[1768374610250,0.555,3331.5,3331.3,0.411]
[1768374610455,1.11,3331.5,3331.1,0.001]
[1768374610753,6.99446824,3331.3,3330.2,0.001]
[1768374610927,6.99446824,3331.3,3330.3,0.411]
[1768374611118,6.99446824,3331.3,3330.4,0.411]
[1768374612826,7.54946824,3331.3,3330.4,0.411]
[1768374613023,6.99446824,3331.2,3330.4,0.411]
[1768374615241,7.54946824,3331.2,3330.4,0.411]
[1768374615984,0.555,3331.2,3330.4,6.03556009]
[1768374616129,0.555,3331.2,3330.5,6.2281161]
[1768374617659,1.11,3331.2,3330.5,6.2281161]
[1768374618361,1.11,3331.2,3330.6,0.411]
[1768374618654,1.11,3331.2,3330.7,0.411]
[1768374618952,1.11,3331.2,3330.8,0.411]
[1768374620258,1.665,3331.2,3330.8,0.411]
[1768374622262,1.665,3331.2,3330.5,5.63496796]
[1768374622431,7.82430963,3331.1,3330.6,0.411]
[1768374622626,2.22,3331.2,3330.6,0.411]
[1768374623766,2.22,3331.2,3330.6,6.05435559]
[1768374625145,2.775,3331.2,3330.6,6.05435559]
[1768374625938,2.775,3331.2,3330.9,0.001]
[1768374626450,2.777,3331.2,3330.9,0.001]
[1768374627546,3.332,3331.2,3330.9,0.001]
[1768374630046,3.887,3331.2,3330.9,0.001]
[1768374632379,4.442,3331.2,3330.9,0.001]
[1768374633776,4.442,3331.2,3330.9,5.64235845]
[1768374633960,4.442,3331.2,3331.0,0.56423585]
[1768374634295,4.442,3331.2,3331.1,0.411]
[1768374634895,4.997,3331.2,3331.1,0.411]
[1768374637390,5.552,3331.2,3331.1,0.411]
[1768374638704,5.48123755,3331.2,3331.1,0.411]
[1768374639692,4.70491976,3331.2,3331.1,0.411]
[1768374641888,4.23991977,3331.2,3331.1,0.411]
[1768374642297,4.79491977,3331.2,3331.1,0.411]
[1768374645272,5.34991977,3331.2,3331.1,0.411]
[1768374648406,5.90491977,3331.2,3331.1,0.411]
[1768374650396,5.90491977,3331.2,3330.9,0.001]
[1768374650686,5.90491977,3331.2,3331.0,0.411]